{"text_format":"1","workbook":"xlsx","n_sheets":6,"sheets":["Hinweise","Grundbuch","Hauptbuch","GuV","Bilanzbuch","Kontenplan"],"not_rendered":{"charts":0,"images":27,"macros":1,"external_links":0,"defined_names":0,"comments":0,"pivot_tables":0},"unopened":[],"bounds":{"document_bytes":16777216,"sheet_cells":100000,"rows_first":2000,"rows_last":500,"rows_between":2000,"halvings":0,"cell_chars":16384,"cell_head_chars":4096},"cells_cut":0,"cells_raw":0,"read":"whole","date_system":"1900"}

{"sheet":"Hinweise","index":0,"n_rows":68,"n_cols":7,"rows_kept":68,"cut":false,"hidden":false,"merged":[[59,1,59,3],[0,0,0,7],[2,0,2,1],[58,1,58,3],[57,1,57,3],[4,0,10,3],[6,4,10,7]]}
["Geschäftsgang 15"]
[]
["Voraussetzungen"]
["Um den Geschäftsgang buchen zu können müssen Sie Kenntnisse über die folgenden Lehrninhalte haben:"]
["Buchungen auf Bestandskonten, Buchungen auf Erfolgskonten, Bestandsveränderungen, Abschreibungen, Umsatzsteuer, Buchung von Bezugskosten, Buchung von Nachlässen und Erlösberichtigungen, Kontenabschluss im Hauptbuch, Der Geschäftsgang umfasst 20 Geschäftsvorfälle + Abschlussbuchungen"]
[]
[null,null,null,null,"Für den Kontenabschluss müssen Sie Grundkenntnisse in der Tabellenkalkulation haben! "]
[]
[]
[]
[]
[]
["Buchen im Grundbuch"]
["1. Wählen Sie die Tabelle \"Grundbuch\"."]
[]
["2. Buchen Sie die Geschäftsvorfälle"]
["    entweder durch Direkteingabe in die entsprechenden Felder des Grundbuchs (Kontennummern und Beträge)"]
["    oder durch Aufruf von Buchungsfenstern. (Klicken Sie dazu jeweils auf die Schaltfläche \"Buchung\" und beenden"]
["    Sie die Eingabe  mit \"OK\".)"]
["    Die Kontennummern sind vierstellig anzugeben. (siehe Kontenplan). Bei zusammengesetzten Buchungssätzen"]
["    sind die Buchungen nach der Höhe der Beträge geordnet vorzunehmen. "]
[]
["3. Sie können sich den Kontenplan mit Kontennummern jederzeit durch Klick auf den"]
["    entsprechenden Button anzeigen lassen."]
[]
["4. Die Richtigkeit Ihrer Buchungen wird bestätigt oder Sie werden auf"]
["    Fehler hingewiesen. (Ohne Buchung werden Fehler angezeigt.)"]
[]
["Buchen in Hauptbuch, GuV und Schlussbilanz"]
["1. Navigation"]
["    Sie können über die Blattregisterkarten die Tabellen Grundbuch, Hauptbuch, GuV und Bilanzbuch ansteuern."]
["    Einen direkten Zugriff auf die jeweils benötigen Konten haben Sie über die folgenden Schalter:"]
[null,"Hauptbuchkonten",null,null,"Grundbuch",null,"Nachlässe (Rohstoffe)"]
[null,"Gewinn und Verlust",null,null,"Schlussbilanz",null,"Rohstoffe"]
[null,"Bestandsveränderungen",null,null,"Umsatzsteuer",null,"Erlösberichtigungen"]
[null,"Vorsteuer",null,null,"Unfertige Erzeugnisse",null,"Umsatzerlöse"]
[null,"Fertige Erzeugnisse",null,null,"Bezugskosten (Rohst.)"]
["   Über diese Schalter können Sie aus dem Grundbuch heraus das für die jeweilige Buchung benötigte Konto"]
["   direkt aufrufen. Dieses Konto wird dann jeweils mit einem X markiert."]
[]
["2. Buchungen"]
["    Die Systematik wird Ihnen an einem Screenshot das Kontos Forderungen gezeigt."]
[]
["    lfd. Nummern ",null,null,null,"lfd. Nummern",null,"               Navigation"]
[]
[]
[]
[]
[]
[]
[]
[]
[]
[null,null,null,null,"Beträge"]
[]
[null,"Kontenanruf (in jeder Zelle steht eine Kontonummer)",null,null,null,null,"   Abschlussmeldung"]
[]
[null,"Eröffnungsbuchungen (bereits gebucht)",null,null,null,"A   = Abschlussbuchung"]
[null,"laufende Buchungen",null,null,null,"AB = Anfangsbestand"]
[null,"Abschlussbuchungen und Berechnungen",null,null,null,"SB = Schlussbestand"]
[]
["3. Abschluss"]
["    Die Konten sind unter fogenden Bedingungen richtig abgeschlossen."]
["    - Die Nummern der Gegenkonten werden gemäß den Grundsätzen ordnungsgemäßer Buchführung geordnet,"]
["      in die dafür vorgesehenen Zellen eingetragen. Die Reihenfolge der Eintragungen muss mit dem Grundbuch"]
["      übereinstimmen."]
["    - Die Beträge sind richtig eingetragen."]
["    - Die Abschlussberechnungen sind korrekt."]

{"sheet":"Grundbuch","index":1,"n_rows":172,"n_cols":7,"rows_kept":172,"cut":false,"hidden":false,"merged":[[146,5,147,6],[148,5,148,6],[149,5,149,6],[151,0,153,0],[155,0,155,2],[160,0,161,0],[163,5,163,6],[156,5,156,6],[157,5,157,6],[164,5,164,6],[165,5,165,6],[167,0,169,0],[142,0,144,0],[134,0,135,0],[127,0,128,0],[130,1,132,2],[137,1,140,2],[137,5,138,6],[139,5,139,6],[140,5,140,6],[132,5,132,6],[120,0,121,0],[123,1,125,2],[123,5,123,6],[124,5,124,6],[125,5,125,6],[116,1,118,2],[116,5,116,6],[117,5,117,6],[118,5,118,6],[130,5,130,6],[131,5,131,6],[9,0,10,0],[12,1,14,2],[12,5,12,6],[13,5,13,6],[14,5,14,6],[24,0,26,0],[16,0,17,0],[19,1,22,2],[19,5,20,6],[21,5,21,6],[63,1,65,2],[63,5,63,6],[64,5,64,6],[65,5,65,6],[5,1,7,2],[5,5,5,6],[6,5,6,6],[7,5,7,6],[22,5,22,6],[171,0,171,6],[1,0,1,4],[2,0,2,4],[60,0,61,0],[70,1,73,2],[70,5,71,6],[72,5,72,6],[73,5,73,6],[67,0,68,0],[158,5,158,6],[32,0,33,0],[35,1,37,2],[35,5,35,6],[36,5,36,6],[37,5,37,6],[28,1,30,2],[28,5,28,6],[29,5,29,6],[30,5,30,6],[46,0,47,0],[49,1,51,2],[49,5,49,6],[50,5,50,6],[51,5,51,6],[39,0,40,0],[42,1,44,2],[42,5,42,6],[43,5,43,6],[44,5,44,6],[75,0,77,0],[79,1,81,2],[79,5,79,6],[80,5,80,6],[81,5,81,6],[53,0,54,0],[56,1,58,2],[56,5,56,6],[57,5,57,6],[58,5,58,6],[83,0,84,0],[86,1,88,2],[86,5,86,6],[90,0,91,0],[87,5,87,6],[88,5,88,6],[97,0,98,0],[100,1,102,2],[100,5,100,6],[101,5,101,6],[102,5,102,6],[93,1,95,2],[93,5,93,6],[94,5,94,6],[95,5,95,6],[112,0,114,0],[104,0,105,0],[107,1,110,2],[107,5,108,6],[109,5,109,6],[110,5,110,6]]}
[]
["Geschäftsvorfälle"]
["Grundbuch"]
[null,null,null,null,null,null,0.19]
[]
["1.","Die Tropic GmbH kauft Bauwollstoff bei der Baumwollweberei Kaiser OHG auf Ziel,",null,"netto",44000,{"$f":"IF(AND(B10=\"2000\",B11=\"2600\",E10=\"4400\"),\"Die Konten sind richtig!\",\"Mindestens ein Konto ist falsch!\")","v":"Mindestens ein Konto ist falsch!"}]
["Geschäftsvorfall",null,null,"USt.",{"$f":"E6*$G$4","v":8360},{"$f":"IF(AND(D10=E6,D11=E7,G10=E8),\"Die Beträge sind richtig!\",\"Mindestens ein Betrag ist falsch!\")","v":"Mindestens ein Betrag ist falsch!"}]
[null,null,null,"brutto",{"$f":"SUM(E6:E7)","v":52360},{"$f":"IF(AND(F6=\"Die Konten sind richtig!\",F7=\"Die Beträge sind richtig!\"),\"Alles richtig!\",\"Es sind noch Fehler vorhanden!\")","v":"Es sind noch Fehler vorhanden!"}]
[null,"Soll","Konto","€","Haben","Konto","€"]
["Buchungssatz","",{"$f":"IF(B10=\"\",\"\",VLOOKUP(B10,Kontenplan!$A$4:$B$34,2))","v":""},null,"",{"$f":"IF(E10=\"\",\"\",VLOOKUP(E10,Kontenplan!$A$4:$B$34,2))","v":""}]
[null,"",{"$f":"IF(B11=\"\",\"\",VLOOKUP(B11,Kontenplan!$A$4:$B$34,2))","v":""}]
[]
["2.","Barzahlung von Bezugskosten für die Lieferung von Baumwollstoffen aus Geschäftsvorfall 1.,",null,"netto",1200,{"$f":"IF(AND(B17=\"2001\",B18=\"2600\",E17=\"2880\"),\"Die Konten sind richtig!\",\"Mindestens ein Konto ist falsch!\")","v":"Mindestens ein Konto ist falsch!"}]
["Geschäftsvorfall",null,null,"USt.",{"$f":"E13*$G$4","v":228},{"$f":"IF(AND(D17=E13,D18=E14,G17=E15),\"Die Beträge sind richtig!\",\"Mindestens ein Betrag ist falsch!\")","v":"Mindestens ein Betrag ist falsch!"}]
[null,null,null,"brutto",{"$f":"SUM(E13:E14)","v":1428},{"$f":"IF(AND(F13=\"Die Konten sind richtig!\",F14=\"Die Beträge sind richtig!\"),\"Alles richtig!\",\"Es sind noch Fehler vorhanden!\")","v":"Es sind noch Fehler vorhanden!"}]
[null,"Soll","Konto","€","Haben","Konto","€"]
["Buchungssatz","",{"$f":"IF(B17=\"\",\"\",VLOOKUP(B17,Kontenplan!$A$4:$B$34,2))","v":""},null,"",{"$f":"IF(E17=\"\",\"\",VLOOKUP(E17,Kontenplan!$A$4:$B$34,2))","v":""}]
[null,"",{"$f":"IF(B18=\"\",\"\",VLOOKUP(B18,Kontenplan!$A$4:$B$34,2))","v":""}]
[]
["3.","Die Boutique Simone Sommer begleicht eine Ausgangsrechnung abzüglich 2% Skonto durch Banküberweisung.",null,"Gutschrift",{"$f":"E23-E22-E21","v":58310},{"$f":"IF(AND(B25=\"2800\",B26=\"5001\",B27=\"4800\",E25=\"2400\"),\"Die Konten sind richtig!\",\"Mindestens ein Konto ist falsch!\")","v":"Mindestens ein Konto ist falsch!"}]
[null,null,null,"Skonto",{"$f":"ROUND((E23*2%)-(E23*2%*($G$4*100))/(100+($G$4*100)),2)","v":1000}]
["Geschäftsvorfall",null,null,"USt.",{"$f":"ROUND(E21*$G$4,2)","v":190},{"$f":"IF(AND(D25=E20,D26=E21,D27=E22,G25=E23),\"Die Beträge sind richtig!\",\"Mindestens ein Betrag ist falsch!\")","v":"Mindestens ein Betrag ist falsch!"}]
[null,null,null,"Bruttobetrag",59500,{"$f":"IF(AND(F20=\"Die Konten sind richtig!\",F22=\"Die Beträge sind richtig!\"),\"Alles richtig!\",\"Es sind noch Fehler vorhanden!\")","v":"Es sind noch Fehler vorhanden!"}]
[null,"Soll","Konto","€","Haben","Konto","€"]
["Buchungssatz","",{"$f":"IF(B25=\"\",\"\",VLOOKUP(B25,Kontenplan!$A$4:$B$34,2))","v":""},null,"",{"$f":"IF(E25=\"\",\"\",VLOOKUP(E25,Kontenplan!$A$4:$B$34,2))","v":""}]
[null,"",{"$f":"IF(B26=\"\",\"\",VLOOKUP(B26,Kontenplan!$A$4:$B$34,2))","v":""}]
[null,"",{"$f":"IF(B27=\"\",\"\",VLOOKUP(B27,Kontenplan!$A$4:$B$34,2))","v":""}]
[]
["4.","Einkauf von Hilfsstoffen auf Ziel bei der Faden GmbH,",null,"netto",4500,{"$f":"IF(AND(B33=\"2020\",B34=\"2600\",E33=\"4400\"),\"Die Konten sind richtig!\",\"Mindestens ein Konto ist falsch!\")","v":"Mindestens ein Konto ist falsch!"}]
["Geschäftsvorfall",null,null,"USt.",{"$f":"E29*$G$4","v":855},{"$f":"IF(AND(D33=E29,D34=E30,G33=E31),\"Die Beträge sind richtig!\",\"Mindestens ein Betrag ist falsch!\")","v":"Mindestens ein Betrag ist falsch!"}]
[null,null,null,"brutto",{"$f":"SUM(E29:E30)","v":5355},{"$f":"IF(AND(F29=\"Die Konten sind richtig!\",F30=\"Die Beträge sind richtig!\"),\"Alles richtig!\",\"Es sind noch Fehler vorhanden!\")","v":"Es sind noch Fehler vorhanden!"}]
[null,"Soll","Konto","€","Haben","Konto","€"]
["Buchungssatz","",{"$f":"IF(B33=\"\",\"\",VLOOKUP(B33,Kontenplan!$A$4:$B$34,2))","v":""},null,"",{"$f":"IF(E33=\"\",\"\",VLOOKUP(E33,Kontenplan!$A$4:$B$34,2))","v":""}]
[null,"",{"$f":"IF(B34=\"\",\"\",VLOOKUP(B34,Kontenplan!$A$4:$B$34,2))","v":""}]
[]
["5.","Rücksendung beschädigter Hilfsstoffe aus Geschäftsvorfall 4. an die Faden GmbH,",null,"netto",2400,{"$f":"IF(AND(B40=\"4400\",E40=\"2020\",E41=\"2600\"),\"Die Konten sind richtig!\",\"Mindestens ein Konto ist falsch!\")","v":"Mindestens ein Konto ist falsch!"}]
["Geschäftsvorfall",null,null,"USt.",{"$f":"E36*$G$4","v":456},{"$f":"IF(AND(D40=E38,G40=E36,G41=E37),\"Die Beträge sind richtig!\",\"Mindestens ein Betrag ist falsch!\")","v":"Mindestens ein Betrag ist falsch!"}]
[null,null,null,"brutto",{"$f":"SUM(E36:E37)","v":2856},{"$f":"IF(AND(F36=\"Die Konten sind richtig!\",F37=\"Die Beträge sind richtig!\"),\"Alles richtig!\",\"Es sind noch Fehler vorhanden!\")","v":"Es sind noch Fehler vorhanden!"}]
[null,"Soll","Konto","€","Haben","Konto","€"]
["Buchungssatz","",{"$f":"IF(B40=\"\",\"\",VLOOKUP(B40,Kontenplan!$A$4:$B$34,2))","v":""},null,"",{"$f":"IF(E40=\"\",\"\",VLOOKUP(E40,Kontenplan!$A$4:$B$34,2))","v":""}]
[null,null,null,null,"",{"$f":"IF(E41=\"\",\"\",VLOOKUP(E41,Kontenplan!$A$4:$B$34,2))","v":""}]
[]
["6.","Bonusgewährung an den Kunden Paolo Russo Jeans,",null,"netto",350,{"$f":"IF(AND(B47=\"5001\",B48=\"4800\",E47=\"2400\"),\"Die Konten sind richtig!\",\"Mindestens ein Konto ist falsch!\")","v":"Mindestens ein Konto ist falsch!"}]
["Geschäftsvorfall",null,null,"USt.",{"$f":"ROUND(E43*$G$4,2)","v":66.5},{"$f":"IF(AND(D47=E43,D48=E44,G47=E45),\"Die Beträge sind richtig!\",\"Mindestens ein Betrag ist falsch!\")","v":"Mindestens ein Betrag ist falsch!"}]
[null,null,null,"brutto",{"$f":"SUM(E43:E44)","v":416.5},{"$f":"IF(AND(F43=\"Die Konten sind richtig!\",F44=\"Die Beträge sind richtig!\"),\"Alles richtig!\",\"Es sind noch Fehler vorhanden!\")","v":"Es sind noch Fehler vorhanden!"}]
[null,"Soll","Konto","€","Haben","Konto","€"]
["Buchungssatz","",{"$f":"IF(B47=\"\",\"\",VLOOKUP(B47,Kontenplan!$A$4:$B$34,2))","v":""},null,"",{"$f":"IF(E47=\"\",\"\",VLOOKUP(E47,Kontenplan!$A$4:$B$34,2))","v":""}]
[null,"",{"$f":"IF(B48=\"\",\"\",VLOOKUP(B48,Kontenplan!$A$4:$B$34,2))","v":""}]
[]
["7.","Einkauf von Hilfsstoffen im Verkaufslager der ZIP GmbH und sofortige Barzahlung,",null,"netto",900,{"$f":"IF(AND(B54=\"2020\",B55=\"2600\",E54=\"2880\"),\"Die Konten sind richtig!\",\"Mindestens ein Konto ist falsch!\")","v":"Mindestens ein Konto ist falsch!"}]
["Geschäftsvorfall",null,null,"USt.",{"$f":"E50*$G$4","v":171},{"$f":"IF(AND(D54=E50,D55=E51,G54=E52),\"Die Beträge sind richtig!\",\"Mindestens ein Betrag ist falsch!\")","v":"Mindestens ein Betrag ist falsch!"}]
[null,null,null,"brutto",{"$f":"SUM(E50:E51)","v":1071},{"$f":"IF(AND(F50=\"Die Konten sind richtig!\",F51=\"Die Beträge sind richtig!\"),\"Alles richtig!\",\"Es sind noch Fehler vorhanden!\")","v":"Es sind noch Fehler vorhanden!"}]
[null,"Soll","Konto","€","Haben","Konto","€"]
["Buchungssatz","",{"$f":"IF(B54=\"\",\"\",VLOOKUP(B54,Kontenplan!$A$4:$B$34,2))","v":""},null,"",{"$f":"IF(E54=\"\",\"\",VLOOKUP(E54,Kontenplan!$A$4:$B$34,2))","v":""}]
[null,"",{"$f":"IF(B55=\"\",\"\",VLOOKUP(B55,Kontenplan!$A$4:$B$34,2))","v":""}]
[]
["8.","Gutschrift der Cotton GmbH & Co KG für einen Preisnachlass aufgrund eines Mangels an gelieferten Stoffen,",null,"netto",1400,{"$f":"IF(AND(B61=\"4400\",E61=\"2002\",E62=\"2600\"),\"Die Konten sind richtig!\",\"Mindestens ein Konto ist falsch!\")","v":"Mindestens ein Konto ist falsch!"}]
["Geschäftsvorfall",null,null,"USt.",{"$f":"E57*$G$4","v":266},{"$f":"IF(AND(D61=E59,G61=E57,G62=E58),\"Die Beträge sind richtig!\",\"Mindestens ein Betrag ist falsch!\")","v":"Mindestens ein Betrag ist falsch!"}]
[null,null,null,"brutto",{"$f":"SUM(E57:E58)","v":1666},{"$f":"IF(AND(F57=\"Die Konten sind richtig!\",F58=\"Die Beträge sind richtig!\"),\"Alles richtig!\",\"Es sind noch Fehler vorhanden!\")","v":"Es sind noch Fehler vorhanden!"}]
[null,"Soll","Konto","€","Haben","Konto","€"]
["Buchungssatz","",{"$f":"IF(B61=\"\",\"\",VLOOKUP(B61,Kontenplan!$A$4:$B$34,2))","v":""},null,"",{"$f":"IF(E61=\"\",\"\",VLOOKUP(E61,Kontenplan!$A$4:$B$34,2))","v":""}]
[null,null,null,null,"",{"$f":"IF(E62=\"\",\"\",VLOOKUP(E62,Kontenplan!$A$4:$B$34,2))","v":""}]
[]
["9.","Barzahlung der Ausgangsfracht für eine Lieferung an die Schickeria Moden GmbH",null,"netto",550,{"$f":"IF(AND(B68=\"6140\",B69=\"2600\",E68=\"2880\"),\"Die Konten sind richtig!\",\"Mindestens ein Konto ist falsch!\")","v":"Mindestens ein Konto ist falsch!"}]
["Geschäftsvorfall",null,null,"USt.",{"$f":"ROUND(E64*$G$4,2)","v":104.5},{"$f":"IF(AND(D68=E64,D69=E65,G68=E66),\"Die Beträge sind richtig!\",\"Mindestens ein Betrag ist falsch!\")","v":"Mindestens ein Betrag ist falsch!"}]
[null,null,null,"brutto",{"$f":"SUM(E64:E65)","v":654.5},{"$f":"IF(AND(F64=\"Die Konten sind richtig!\",F65=\"Die Beträge sind richtig!\"),\"Alles richtig!\",\"Es sind noch Fehler vorhanden!\")","v":"Es sind noch Fehler vorhanden!"}]
[null,"Soll","Konto","€","Haben","Konto","€"]
["Buchungssatz","",{"$f":"IF(B68=\"\",\"\",VLOOKUP(B68,Kontenplan!$A$4:$B$34,2))","v":""},null,"",{"$f":"IF(E68=\"\",\"\",VLOOKUP(E68,Kontenplan!$A$4:$B$34,2))","v":""},654.5]
[null,"",{"$f":"IF(B69=\"\",\"\",VLOOKUP(B69,Kontenplan!$A$4:$B$34,2))","v":""}]
[]
["10.","Banküberweisung an die Weberei Holzmann KG für den Bezug von Rohstoffen unter Abzug von 2% Skonto, ",null,"Lastschrift",{"$f":"E74-E73-E72","v":29155},{"$f":"IF(AND(B76=\"4400\",E76=\"2800\",E77=\"2002\",E78=\"2600\"),\"Die Konten sind richtig!\",\"Mindestens ein Konto ist falsch!\")","v":"Mindestens ein Konto ist falsch!"}]
[null,null,null,"Skonto",{"$f":"ROUND((E74*2%)-(E74*2%*($G$4*100))/(100+($G$4*100)),2)","v":500}]
["Geschäftsvorfall",null,null,"USt.",{"$f":"ROUND(E72*$G$4,2)","v":95},{"$f":"IF(AND(D76=E74,E74,G76=E71,G77=E72,G78=E73),\"Die Beträge sind richtig!\",\"Mindestens ein Betrag ist falsch!\")","v":"Mindestens ein Betrag ist falsch!"}]
[null,null,null,"Bruttobetrag",29750,{"$f":"IF(AND(F71=\"Die Konten sind richtig!\",F73=\"Die Beträge sind richtig!\"),\"Alles richtig!\",\"Es sind noch Fehler vorhanden!\")","v":"Es sind noch Fehler vorhanden!"}]
[null,"Soll","Konto","€","Haben","Konto","€"]
["Buchungssatz","",{"$f":"IF(B76=\"\",\"\",VLOOKUP(B76,Kontenplan!$A$4:$B$34,2))","v":""},null,"",{"$f":"IF(E76=\"\",\"\",VLOOKUP(E76,Kontenplan!$A$4:$B$34,2))","v":""}]
[null,null,null,null,"",{"$f":"IF(E77=\"\",\"\",VLOOKUP(E77,Kontenplan!$A$4:$B$34,2))","v":""}]
[null,null,null,null,"",{"$f":"IF(E78=\"\",\"\",VLOOKUP(E78,Kontenplan!$A$4:$B$34,2))","v":""}]
[]
["11.","Verkauf von fertigen Erzeugnissen auf Ziel an die Route 66 GmbH,",null,"netto",80000,{"$f":"IF(AND(B84=\"2400\",E84=\"5000\",E85=\"4800\"),\"Die Konten sind richtig!\",\"Mindestens ein Konto ist falsch!\")","v":"Mindestens ein Konto ist falsch!"}]
["Geschäftsvorfall",null,null,"USt.",{"$f":"E80*$G$4","v":15200},{"$f":"IF(AND(D84=E82,G84=E80,G85=E81),\"Die Beträge sind richtig!\",\"Mindestens ein Betrag ist falsch!\")","v":"Mindestens ein Betrag ist falsch!"}]
[null,null,null,"brutto",{"$f":"SUM(E80:E81)","v":95200},{"$f":"IF(AND(F80=\"Die Konten sind richtig!\",F81=\"Die Beträge sind richtig!\"),\"Alles richtig!\",\"Es sind noch Fehler vorhanden!\")","v":"Es sind noch Fehler vorhanden!"}]
[null,"Soll","Konto","€","Haben","Konto","€"]
["Buchungssatz","",{"$f":"IF(B84=\"\",\"\",VLOOKUP(B84,Kontenplan!$A$4:$B$34,2))","v":""},null,"",{"$f":"IF(E84=\"\",\"\",VLOOKUP(E84,Kontenplan!$A$4:$B$34,2))","v":""}]
[null,null,null,null,"",{"$f":"IF(E85=\"\",\"\",VLOOKUP(E85,Kontenplan!$A$4:$B$34,2))","v":""}]
[]
["12.","Wir zahlen Fracht für den Verkauf von fertigen Erzeugnissen aus Geschäftsvorfall 11 bar, ",null,"netto",1200,{"$f":"IF(AND(B91=\"6140\",B92=\"2600\",E91=\"2880\"),\"Die Konten sind richtig!\",\"Mindestens ein Konto ist falsch!\")","v":"Mindestens ein Konto ist falsch!"}]
["Geschäftsvorfall",null,null,"USt.",{"$f":"E87*$G$4","v":228},{"$f":"IF(AND(D91=E87,D92=E88,G91=E89),\"Die Beträge sind richtig!\",\"Mindestens ein Betrag ist falsch!\")","v":"Mindestens ein Betrag ist falsch!"}]
[null,null,null,"brutto",{"$f":"SUM(E87:E88)","v":1428},{"$f":"IF(AND(F87=\"Die Konten sind richtig!\",F88=\"Die Beträge sind richtig!\"),\"Alles richtig!\",\"Es sind noch Fehler vorhanden!\")","v":"Es sind noch Fehler vorhanden!"}]
[null,"Soll","Konto","€","Haben","Konto","€"]
["Buchungssatz","",{"$f":"IF(B91=\"\",\"\",VLOOKUP(B91,Kontenplan!$A$4:$B$34,2))","v":""},null,"",{"$f":"IF(E91=\"\",\"\",VLOOKUP(E91,Kontenplan!$A$4:$B$34,2))","v":""}]
[null,"",{"$f":"IF(B92=\"\",\"\",VLOOKUP(B92,Kontenplan!$A$4:$B$34,2))","v":""}]
[]
["13.","Barverkauf an Marinas Collection GmbH,",null,"netto",2800,{"$f":"IF(AND(B98=\"2880\",E98=\"5000\",E99=\"4800\"),\"Die Konten sind richtig!\",\"Mindestens ein Konto ist falsch!\")","v":"Mindestens ein Konto ist falsch!"}]
["Geschäftsvorfall",null,null,"USt.",{"$f":"E94*$G$4","v":532},{"$f":"IF(AND(D98=E96,G98=E94,G99=E95),\"Die Beträge sind richtig!\",\"Mindestens ein Betrag ist falsch!\")","v":"Mindestens ein Betrag ist falsch!"}]
[null,null,null,"brutto",{"$f":"SUM(E94:E95)","v":3332},{"$f":"IF(AND(F94=\"Die Konten sind richtig!\",F95=\"Die Beträge sind richtig!\"),\"Alles richtig!\",\"Es sind noch Fehler vorhanden!\")","v":"Es sind noch Fehler vorhanden!"}]
[null,"Soll","Konto","€","Haben","Konto","€"]
["Buchungssatz","",{"$f":"IF(B98=\"\",\"\",VLOOKUP(B98,Kontenplan!$A$4:$B$34,2))","v":""},null,"",{"$f":"IF(E98=\"\",\"\",VLOOKUP(E98,Kontenplan!$A$4:$B$34,2))","v":""}]
[null,null,null,null,"",{"$f":"IF(E99=\"\",\"\",VLOOKUP(E99,Kontenplan!$A$4:$B$34,2))","v":""}]
[]
["14.","Einkauf von Jeansstoffen bei der Bauwollweberei Kaiser OHG auf Ziel,",null,"netto",15000,{"$f":"IF(AND(B105=\"2000\",B106=\"2600\",E105=\"4400\"),\"Die Konten sind richtig!\",\"Mindestens ein Konto ist falsch!\")","v":"Mindestens ein Konto ist falsch!"}]
["Geschäftsvorfall",null,null,"USt.",{"$f":"E101*$G$4","v":2850},{"$f":"IF(AND(D105=E101,D106=E102,G105=E103),\"Die Beträge sind richtig!\",\"Mindestens ein Betrag ist falsch!\")","v":"Mindestens ein Betrag ist falsch!"}]
[null,null,null,"brutto",{"$f":"SUM(E101:E102)","v":17850},{"$f":"IF(AND(F101=\"Die Konten sind richtig!\",F102=\"Die Beträge sind richtig!\"),\"Alles richtig!\",\"Es sind noch Fehler vorhanden!\")","v":"Es sind noch Fehler vorhanden!"}]
[null,"Soll","Konto","€","Haben","Konto","€"]
["Buchungssatz","",{"$f":"IF(B105=\"\",\"\",VLOOKUP(B105,Kontenplan!$A$4:$B$34,2))","v":""},null,"",{"$f":"IF(E105=\"\",\"\",VLOOKUP(E105,Kontenplan!$A$4:$B$34,2))","v":""}]
[null,"",{"$f":"IF(B106=\"\",\"\",VLOOKUP(B106,Kontenplan!$A$4:$B$34,2))","v":""}]
[]
["15.","Banküberweisung an die Baumwollweberei Kaiser OHG für den Stoffeinkauf aus Geschäftsvorfall 14 unter Abzug von 2% Skonto, ",null,"Lastschrift",{"$f":"E111-E110-E109","v":17493},{"$f":"IF(AND(B113=\"4400\",E113=\"2800\",E114=\"2002\",E115=\"2600\"),\"Die Konten sind richtig!\",\"Mindestens ein Konto ist falsch!\")","v":"Mindestens ein Konto ist falsch!"}]
[null,null,null,"Skonto",{"$f":"ROUND((E111*2%)-(E111*2%*($G$4*100))/(100+($G$4*100)),2)","v":300}]
["Geschäftsvorfall",null,null,"USt.",{"$f":"ROUND(E109*$G$4,2)","v":57},{"$f":"IF(AND(D113=E111,E111,G113=E108,G114=E109,G115=E110),\"Die Beträge sind richtig!\",\"Mindestens ein Betrag ist falsch!\")","v":"Mindestens ein Betrag ist falsch!"}]
[null,null,null,"Bruttobetrag",{"$f":"E103","v":17850},{"$f":"IF(AND(F108=\"Die Konten sind richtig!\",F110=\"Die Beträge sind richtig!\"),\"Alles richtig!\",\"Es sind noch Fehler vorhanden!\")","v":"Es sind noch Fehler vorhanden!"}]
[null,"Soll","Konto","€","Haben","Konto","€"]
["Buchungssatz","",{"$f":"IF(B113=\"\",\"\",VLOOKUP(B113,Kontenplan!$A$4:$B$34,2))","v":""},null,"",{"$f":"IF(E113=\"\",\"\",VLOOKUP(E113,Kontenplan!$A$4:$B$34,2))","v":""}]
[null,null,null,null,"",{"$f":"IF(E114=\"\",\"\",VLOOKUP(E114,Kontenplan!$A$4:$B$34,2))","v":""}]
[null,null,null,null,"",{"$f":"IF(E115=\"\",\"\",VLOOKUP(E115,Kontenplan!$A$4:$B$34,2))","v":""}]
[]
["16.","Rücksendung von Trainingsanzügen durch die  Black and Blue Jeans GmbH,",null,"netto",4500,{"$f":"IF(AND(B121=\"5000\",B122=\"4800\",E121=\"2400\"),\"Die Konten sind richtig!\",\"Mindestens ein Konto ist falsch!\")","v":"Mindestens ein Konto ist falsch!"}]
["Geschäftsvorfall",null,null,"USt.",{"$f":"E117*$G$4","v":855},{"$f":"IF(AND(D121=E117,D122=E118,G121=E119),\"Die Beträge sind richtig!\",\"Mindestens ein Betrag ist falsch!\")","v":"Mindestens ein Betrag ist falsch!"}]
[null,null,null,"brutto",{"$f":"SUM(E117:E118)","v":5355},{"$f":"IF(AND(F117=\"Die Konten sind richtig!\",F118=\"Die Beträge sind richtig!\"),\"Alles richtig!\",\"Es sind noch Fehler vorhanden!\")","v":"Es sind noch Fehler vorhanden!"}]
[null,"Soll","Konto","€","Haben","Konto","€"]
["Buchungssatz","",{"$f":"IF(B121=\"\",\"\",VLOOKUP(B121,Kontenplan!$A$4:$B$34,2))","v":""},null,"",{"$f":"IF(E121=\"\",\"\",VLOOKUP(E121,Kontenplan!$A$4:$B$34,2))","v":""}]
[null,"",{"$f":"IF(B122=\"\",\"\",VLOOKUP(B122,Kontenplan!$A$4:$B$34,2))","v":""}]
[]
["17.","Rücksendung von mangelhaften Microfaserstoffen an die Meersdonk OHG,",null,"netto",6600,{"$f":"IF(AND(B128=\"4400\",E128=\"2000\",E129=\"2600\"),\"Die Konten sind richtig!\",\"Mindestens ein Konto ist falsch!\")","v":"Mindestens ein Konto ist falsch!"}]
["Geschäftsvorfall",null,null,"USt.",{"$f":"E124*$G$4","v":1254},{"$f":"IF(AND(D128=E126,G128=E124,G129=E125),\"Die Beträge sind richtig!\",\"Mindestens ein Betrag ist falsch!\")","v":"Mindestens ein Betrag ist falsch!"}]
[null,null,null,"brutto",{"$f":"SUM(E124:E125)","v":7854},{"$f":"IF(AND(F124=\"Die Konten sind richtig!\",F125=\"Die Beträge sind richtig!\"),\"Alles richtig!\",\"Es sind noch Fehler vorhanden!\")","v":"Es sind noch Fehler vorhanden!"}]
[null,"Soll","Konto","€","Haben","Konto","€"]
["Buchungssatz","",{"$f":"IF(B128=\"\",\"\",VLOOKUP(B128,Kontenplan!$A$4:$B$34,2))","v":""},null,"",{"$f":"IF(E128=\"\",\"\",VLOOKUP(E128,Kontenplan!$A$4:$B$34,2))","v":""}]
[null,null,null,null,"",{"$f":"IF(E129=\"\",\"\",VLOOKUP(E129,Kontenplan!$A$4:$B$34,2))","v":""}]
[]
["18.","Verkauf von Badehosen, Badeanzügen und Bikinis an die Kick Moden GmbH",null,"netto",38000,{"$f":"IF(AND(B135=\"2400\",E135=\"5000\",E136=\"4800\"),\"Die Konten sind richtig!\",\"Mindestens ein Konto ist falsch!\")","v":"Mindestens ein Konto ist falsch!"}]
["Geschäftsvorfall",null,null,"USt.",{"$f":"E131*$G$4","v":7220},{"$f":"IF(AND(D135=E133,G135=E131,G136=E132),\"Die Beträge sind richtig!\",\"Mindestens ein Betrag ist falsch!\")","v":"Mindestens ein Betrag ist falsch!"}]
[null,null,null,"brutto",{"$f":"SUM(E131:E132)","v":45220},{"$f":"IF(AND(F131=\"Die Konten sind richtig!\",F132=\"Die Beträge sind richtig!\"),\"Alles richtig!\",\"Es sind noch Fehler vorhanden!\")","v":"Es sind noch Fehler vorhanden!"}]
[null,"Soll","Konto","€","Haben","Konto","€"]
["Buchungssatz","",{"$f":"IF(B135=\"\",\"\",VLOOKUP(B135,Kontenplan!$A$4:$B$34,2))","v":""},null,"",{"$f":"IF(E135=\"\",\"\",VLOOKUP(E135,Kontenplan!$A$4:$B$34,2))","v":""}]
[null,null,null,null,"",{"$f":"IF(E136=\"\",\"\",VLOOKUP(E136,Kontenplan!$A$4:$B$34,2))","v":""}]
[]
["19.","Banküberweisung der Fa. Jeans and Shirts unter Abzug von 3% Skonto",null,"Gutschrift",{"$f":"E141-E140-E139","v":23086},{"$f":"IF(AND(B143=\"2800\",B144=\"5001\",B145=\"4800\",E143=\"2400\"),\"Die Konten sind richtig!\",\"Mindestens ein Konto ist falsch!\")","v":"Mindestens ein Konto ist falsch!"}]
[null,null,null,"Skonto",{"$f":"ROUND((E141*3%)-(E141*3%*($G$4*100))/(100+($G$4*100)),2)","v":600}]
["Geschäftsvorfall",null,null,"USt.",{"$f":"ROUND(E139*$G$4,2)","v":114},{"$f":"IF(AND(D143=E138,D144=E139,D145=E140,G143=E141),\"Die Beträge sind richtig!\",\"Mindestens ein Betrag ist falsch!\")","v":"Mindestens ein Betrag ist falsch!"}]
[null,null,null,"Bruttobetrag",23800,{"$f":"IF(AND(F138=\"Die Konten sind richtig!\",F140=\"Die Beträge sind richtig!\"),\"Alles richtig!\",\"Es sind noch Fehler vorhanden!\")","v":"Es sind noch Fehler vorhanden!"}]
[null,"Soll","Konto","€","Haben","Konto","€"]
["Buchungssatz","",{"$f":"IF(B143=\"\",\"\",VLOOKUP(B143,Kontenplan!$A$4:$B$34,2))","v":""},null,"",{"$f":"IF(E143=\"\",\"\",VLOOKUP(E143,Kontenplan!$A$4:$B$34,2))","v":""}]
[null,"",{"$f":"IF(B144=\"\",\"\",VLOOKUP(B144,Kontenplan!$A$4:$B$34,2))","v":""}]
[null,"",{"$f":"IF(B145=\"\",\"\",VLOOKUP(B145,Kontenplan!$A$4:$B$34,2))","v":""}]
[]
["20.","Verbrauch lt. Materialentnahmescheine für",null,null,null,{"$f":"IF(AND(B152=\"6000\",E152=\"2000\",B153=\"6020\",E153=\"2020\",B154=\"6030\",E154=\"2030\"),\"Die Konten sind richtig!\",\"Mindestens ein Konto ist falsch!\")","v":"Mindestens ein Konto ist falsch!"}]
["Geschäftsvorfall",null,"           - Rohstoffe",null,23000]
[null,null,"           - Hilfsstoffe",null,9800,{"$f":"IF(AND(D152=E148,D153=E149,D154=E150,G152=E148,G153=E149,G154=E150),\"Die Beträge sind richtig!\",\"Mindestens ein Betrag ist falsch!\")","v":"Mindestens ein Betrag ist falsch!"}]
[null,null,"           - Betriebsstoffe",null,1400,{"$f":"IF(AND(F147=\"Die Konten sind richtig!\",F149=\"Die Beträge sind richtig!\"),\"Alles richtig!\",\"Es sind noch Fehler vorhanden!\")","v":"Es sind noch Fehler vorhanden!"}]
[null,"Soll","Konto","€","Haben","Konto","€"]
["Buchungssatz","",{"$f":"IF(B152=\"\",\"\",VLOOKUP(B152,Kontenplan!$A$4:$B$34,2))","v":""},null,"",{"$f":"IF(E152=\"\",\"\",VLOOKUP(E152,Kontenplan!$A$4:$B$34,2))","v":""}]
[null,"",{"$f":"IF(B153=\"\",\"\",VLOOKUP(B153,Kontenplan!$A$4:$B$34,2))","v":""},null,"",{"$f":"IF(E153=\"\",\"\",VLOOKUP(E153,Kontenplan!$A$4:$B$34,2))","v":""}]
[null,"",{"$f":"IF(B154=\"\",\"\",VLOOKUP(B154,Kontenplan!$A$4:$B$34,2))","v":""},null,"",{"$f":"IF(E154=\"\",\"\",VLOOKUP(E154,Kontenplan!$A$4:$B$34,2))","v":""}]
[]
["Abschlussangaben"]
["A1","Endbestände lt. Inventur",null,null,null,{"$f":"IF(AND(B161=\"8010\",E161=\"2100\",B162=\"8010\",E162=\"2200\"),\"Die Konten sind richtig!\",\"Mindestens ein Konto ist falsch!\")","v":"Mindestens ein Konto ist falsch!"}]
["Abschlussangabe",null,"           - Unfertige Erzeugnisse",null,14800,{"$f":"IF(AND(D161=E158,D162=E159,G161=E158,G162=E159),\"Die Beträge sind richtig!\",\"Mindestens ein Betrag ist falsch!\")","v":"Mindestens ein Betrag ist falsch!"}]
[null,null,"           - Fertige Erzeugnisse",null,47000,{"$f":"IF(AND(F157=\"Die Konten sind richtig!\",F158=\"Die Beträge sind richtig!\"),\"Alles richtig!\",\"Es sind noch Fehler vorhanden!\")","v":"Es sind noch Fehler vorhanden!"}]
[null,"Soll","Konto","€","Haben","Konto","€"]
["Buchungssatz","",{"$f":"IF(B161=\"\",\"\",VLOOKUP(B161,Kontenplan!$A$4:$B$34,2))","v":""},null,"",{"$f":"IF(E161=\"\",\"\",VLOOKUP(E161,Kontenplan!$A$4:$B$34,2))","v":""}]
[null,"",{"$f":"IF(B162=\"\",\"\",VLOOKUP(B162,Kontenplan!$A$4:$B$34,2))","v":""},null,"",{"$f":"IF(E162=\"\",\"\",VLOOKUP(E162,Kontenplan!$A$4:$B$34,2))","v":""}]
[]
["A2","Abschreibungen        - Technische Anlagen und Maschinen",null,null,26000,{"$f":"IF(AND(B168=\"6520\",E168=\"0700\",B169=\"6520\",E169=\"0800\",B170=\"6520\",E170=\"0840\"),\"Die Konten sind richtig!\",\"Mindestens ein Konto ist falsch!\")","v":"Mindestens ein Konto ist falsch!"}]
["Abschlussangabe",null,"           - Betriebs- und Geschäftsaustattung",null,12400,{"$f":"IF(AND(D168=E164,D169=E165,D170=E166,G168=E164,G169=E165,G170=E166),\"Die Beträge sind richtig!\",\"Mindestens ein Betrag ist falsch!\")","v":"Mindestens ein Betrag ist falsch!"}]
[null,null,"           - Fuhrpark",null,13000,{"$f":"IF(AND(F164=\"Die Konten sind richtig!\",F165=\"Die Beträge sind richtig!\"),\"Alles richtig!\",\"Es sind noch Fehler vorhanden!\")","v":"Es sind noch Fehler vorhanden!"}]
[null,"Soll","Konto","€","Haben","Konto","€"]
["Buchungssatz","",{"$f":"IF(B168=\"\",\"\",VLOOKUP(B168,Kontenplan!$A$4:$B$34,2))","v":""},null,"",{"$f":"IF(E168=\"\",\"\",VLOOKUP(E168,Kontenplan!$A$4:$B$34,2))","v":""}]
[null,"",{"$f":"IF(B169=\"\",\"\",VLOOKUP(B169,Kontenplan!$A$4:$B$34,2))","v":""},null,"",{"$f":"IF(E169=\"\",\"\",VLOOKUP(E169,Kontenplan!$A$4:$B$34,2))","v":""}]
[null,"",{"$f":"IF(B170=\"\",\"\",VLOOKUP(B170,Kontenplan!$A$4:$B$34,2))","v":""},null,"",{"$f":"IF(E170=\"\",\"\",VLOOKUP(E170,Kontenplan!$A$4:$B$34,2))","v":""}]
[]
[{"$f":"IF(AND(F8=\"Alles richtig!\",F15=\"Alles richtig!\",F23=\"Alles richtig!\",F31=\"Alles richtig!\",F38=\"Alles richtig!\",F45=\"Alles richtig!\",F52=\"Alles richtig!\",F59=\"Alles richtig!\",F66=\"Alles richtig!\",F74=\"Alles richtig!\",F82=\"Alles richtig!\",F89=\"Alles richtig!\",F96=\"Alles richtig!\",F103=\"Alles richtig!\",F111=\"Alles richtig!\",F119=\"Alles richtig!\",F126=\"Alles richtig!\",F133=\"Alles richtig!\",F141=\"Alles richtig!\",F150=\"Alles richtig!\",F159=\"Alles richtig!\",F159=\"Alles richtig!\",F166=\"Alles richtig!\"),\"Die Buchungen im Grundbuch sind richtig!\",\"Das Grundbuch ist noch nicht vollständig!\")","v":"Das Grundbuch ist noch nicht vollständig!"}]

{"sheet":"Hauptbuch","index":2,"n_rows":185,"n_cols":12,"rows_kept":185,"cut":false,"hidden":false,"merged":[[154,11,154,12],[166,11,166,12],[159,11,159,12],[55,11,55,12],[9,11,9,12],[10,11,10,12],[146,11,146,12],[145,11,145,12],[153,11,153,12],[175,6,175,8],[180,1,180,8],[181,1,181,3],[181,6,181,8],[183,11,183,12],[184,11,184,12],[165,11,165,12],[130,11,130,12],[138,11,138,12],[139,11,139,12],[177,11,177,12],[168,1,168,8],[169,1,169,3],[169,6,169,8],[171,11,171,12],[175,1,175,3],[100,11,100,12],[108,11,108,12],[109,11,109,12],[112,11,112,12],[178,11,178,12],[113,11,113,12],[118,11,118,12],[119,11,119,12],[129,11,129,12],[172,11,172,12],[49,11,49,12],[41,11,41,12],[82,11,82,12],[93,11,93,12],[99,11,99,12],[67,11,67,12],[72,11,72,12],[73,11,73,12],[81,11,81,12],[92,11,92,12],[28,11,28,12],[34,11,34,12],[35,11,35,12],[60,11,60,12],[61,11,61,12],[66,11,66,12],[40,11,40,12],[54,11,54,12],[47,11,47,12],[48,11,48,12],[13,1,13,3],[15,11,15,12],[16,11,16,12],[21,11,21,12],[22,11,22,12],[27,11,27,12],[174,1,174,8],[157,6,157,8],[162,1,162,8],[163,1,163,3],[163,6,163,8],[3,11,3,12],[4,11,4,12],[143,6,143,8],[150,1,150,3],[150,6,150,8],[13,6,13,8],[19,1,19,3],[19,6,19,8],[18,1,18,8],[156,1,156,8],[157,1,157,3],[90,6,90,8],[78,1,78,8],[79,1,79,3],[79,6,79,8],[44,1,44,8],[51,1,51,8],[38,1,38,3],[38,6,38,8],[45,1,45,3],[45,6,45,8],[25,1,25,3],[25,6,25,8],[33,1,33,3],[32,1,32,8],[33,6,33,8],[37,1,37,8],[0,0,0,9],[2,1,2,8],[6,1,6,8],[12,1,12,8],[3,1,3,3],[3,6,3,8],[7,1,7,3],[7,6,7,8],[52,6,52,8],[116,1,116,3],[116,6,116,8],[112,1,112,3],[112,6,112,8],[111,1,111,8],[63,1,63,8],[52,1,52,3],[58,1,58,3],[115,1,115,8],[24,1,24,8],[69,1,69,8],[125,1,125,8],[89,1,89,8],[97,1,97,3],[97,6,97,8],[96,1,96,8],[105,1,105,8],[57,1,57,8],[136,1,136,3],[136,6,136,8],[126,1,126,3],[126,6,126,8],[135,1,135,8],[143,1,143,3],[142,1,142,8],[160,11,160,12],[90,1,90,3],[58,6,58,8],[64,1,64,3],[64,6,64,8],[70,1,70,3],[70,6,70,8],[149,1,149,8],[106,1,106,3],[106,6,106,8]]}
["Hauptbuch"]
[]
["Soll","0500 Grundstücke und Bauten",null,null,null,null,null,null,null,"Haben"]
["Nr.","Kontenanruf",null,null,"Euro","Nr.","Kontenanruf",null,null,"Euro",{"$f":"IF(L4=\"Kontenanrufe vollständig!\",1,2)","v":2},{"$f":"IF(G5=8010,\"Kontenanrufe vollständig!\",\"Kontenanrufe nicht vollständig!\")","v":"Kontenanrufe nicht vollständig!"}]
["AB","8000",null,null,{"$f":"Bilanzbuch!C4","v":1100000},"SB",null,null,null,null,{"$f":"IF(L5=\"Saldo richtig!\",1,2)","v":2},{"$f":"IF(J5=1100000,\"Saldo richtig!\",\"Ermitteln Sie den richtigen Saldo!\")","v":"Ermitteln Sie den richtigen Saldo!"}]
[]
["Soll","0700 Technische Anlagen und Maschinen",null,null,null,null,null,null,null,"Haben"]
["Nr.","Kontenanruf",null,null,"Euro","Nr.","Kontenanruf",null,null,"Euro"]
["AB","8000",null,null,{"$f":"Bilanzbuch!C5","v":590000},"A2"]
[null,null,null,null,null,"SB",null,null,null,null,{"$f":"IF(L10=\"Kontenanrufe vollständig!\",1,2)","v":2},{"$f":"IF(AND(G9=6520,G10=8010),\"Kontenanrufe vollständig!\",\"Kontenanrufe nicht vollständig!\")","v":"Kontenanrufe nicht vollständig!"}]
[null,null,null,null,null,null,null,null,null,null,{"$f":"IF(L11=\"Saldo richtig!\",1,2)","v":2},{"$f":"IF(J10=564000,\"Saldo richtig!\",\"Ermitteln Sie den richtigen Saldo!\")","v":"Ermitteln Sie den richtigen Saldo!"}]
[]
["Soll","0800 Betriebs- und Geschäftsausstattung",null,null,null,null,null,null,null,"Haben"]
["Nr.","Kontenanruf",null,null,"Euro","Nr.","Kontenanruf",null,null,"Euro"]
["AB","8000",null,null,{"$f":"Bilanzbuch!C6","v":115000},"A2"]
[null,null,null,null,null,"SB",null,null,null,null,{"$f":"IF(L16=\"Kontenanrufe vollständig!\",1,2)","v":2},{"$f":"IF(AND(G15=6520,G16=8010),\"Kontenanrufe vollständig!\",\"Kontenanrufe nicht vollständig!\")","v":"Kontenanrufe nicht vollständig!"}]
[null,null,null,null,null,null,null,null,null,null,{"$f":"IF(L17=\"Saldo richtig!\",1,2)","v":2},{"$f":"IF(J16=102600,\"Saldo richtig!\",\"Ermitteln Sie den richtigen Saldo!\")","v":"Ermitteln Sie den richtigen Saldo!"}]
[]
["Soll","0840 Fuhrpark",null,null,null,null,null,null,null,"Haben"]
["Nr.","Kontenanruf",null,null,"Euro","Nr.","Kontenanruf",null,null,"Euro"]
["AB","8000",null,null,{"$f":"Bilanzbuch!C7","v":105000},"A2"]
[null,null,null,null,null,"SB",null,null,null,null,{"$f":"IF(L22=\"Kontenanrufe vollständig!\",1,2)","v":2},{"$f":"IF(AND(G21=6520,G22=8010),\"Kontenanrufe vollständig!\",\"Kontenanrufe nicht vollständig!\")","v":"Kontenanrufe nicht vollständig!"}]
[null,null,null,null,null,null,null,null,null,null,{"$f":"IF(L23=\"Saldo richtig!\",1,2)","v":2},{"$f":"IF(J22=92000,\"Saldo richtig!\",\"Ermitteln Sie den richtigen Saldo!\")","v":"Ermitteln Sie den richtigen Saldo!"}]
[]
["Soll","2000 Rohstoffe",null,null,null,null,null,null,null,"Haben"]
["Nr.","Kontenanruf",null,null,"Euro","Nr.","Kontenanruf",null,null,"Euro"]
["AB","8000",null,null,{"$f":"Bilanzbuch!C8","v":90000},"17."]
["1.",null,null,null,null,"20.",null,null,null,null,{"$f":"IF(L28=\"Kontenanrufe vollständig!\",1,2)","v":2},{"$f":"IF(AND(B28=4400,B29=4400,B30=2001,G27=4400,G28=6000,G29=2002,G30=8010),\"Kontenanrufe vollständig!\",\"Kontenanrufe nicht vollständig!\")","v":"Kontenanrufe nicht vollständig!"}]
["14.",null,null,null,null,"A",null,null,null,null,{"$f":"IF(L29=\"Saldo richtig!\",1,2)","v":2},{"$f":"IF(J30=118400,\"Saldo richtig!\",\"Ermitteln Sie den richtigen Saldo!\")","v":"Ermitteln Sie den richtigen Saldo!"}]
["A",null,null,null,null,"SB"]
[]
[]
["Soll","2001 Bezugskosten (Rohstoffe)",null,null,null,null,null,null,null,"Haben"]
["Nr.","Kontenanruf",null,null,"Euro","Nr.","Kontenanruf",null,null,"Euro"]
["2.",null,null,null,null,"A",null,null,null,null,{"$f":"IF(L35=\"Kontenanrufe vollständig!\",1,2)","v":2},{"$f":"IF(AND(B35=2880,G35=2000),\"Kontenanrufe vollständig!\",\"Kontenanrufe nicht vollständig!\")","v":"Kontenanrufe nicht vollständig!"}]
[null,null,null,null,null,null,null,null,null,null,{"$f":"IF(L36=\"Saldo richtig!\",1,2)","v":2},{"$f":"IF(J35=1200,\"Saldo richtig!\",\"Ermitteln Sie den richtigen Saldo!\")","v":"Ermitteln Sie den richtigen Saldo!"}]
[]
["Soll","2002 Nachlässe (Rohstoffe)",null,null,null,null,null,null,null,"Haben"]
["Nr.","Kontenanruf",null,null,"Euro","Nr.","Kontenanruf",null,null,"Euro"]
["A",null,null,null,null,"8."]
[null,null,null,null,null,"10.",null,null,null,null,{"$f":"IF(L41=\"Kontenanrufe vollständig!\",1,2)","v":2},{"$f":"IF(AND(B40=2000,G40=4400,G41=4400,G42=4400),\"Kontenanrufe vollständig!\",\"Kontenanrufe nicht vollständig!\")","v":"Kontenanrufe nicht vollständig!"}]
[null,null,null,null,null,"15.",null,null,null,null,{"$f":"IF(L42=\"Saldo richtig!\",1,2)","v":2},{"$f":"IF(E40=2200,\"Saldo richtig!\",\"Ermitteln Sie den richtigen Saldo!\")","v":"Ermitteln Sie den richtigen Saldo!"}]
[]
[]
["Soll","2020 Hilfsstoffe",null,null,null,null,null,null,null,"Haben"]
["Nr.","Kontenanruf",null,null,"Euro","Nr.","Kontenanruf",null,null,"Euro"]
["AB",8000,null,null,{"$f":"Bilanzbuch!C9","v":16000},"5."]
["4.",null,null,null,null,"20.",null,null,null,null,{"$f":"IF(L48=\"Kontenanrufe vollständig!\",1,2)","v":2},{"$f":"IF(AND(B48=4400,B49=2880,G47=4400,G48=6020,G49=8010),\"Kontenanrufe vollständig!\",\"Kontenanrufe nicht vollständig!\")","v":"Kontenanrufe nicht vollständig!"}]
["7.",null,null,null,null,"SB",null,null,null,null,{"$f":"IF(L49=\"Saldo richtig!\",1,2)","v":2},{"$f":"IF(J49=9200,\"Saldo richtig!\",\"Ermitteln Sie den richtigen Saldo!\")","v":"Ermitteln Sie den richtigen Saldo!"}]
[]
[]
["Soll","2030 Betriebsstoffe",null,null,null,null,null,null,null,"Haben"]
["Nr.","Kontenanruf",null,null,"Euro","Nr.","Kontenanruf",null,null,"Euro"]
["AB","8000",null,null,{"$f":"Bilanzbuch!C10","v":14000},"20."]
[null,null,null,null,null,"SB",null,null,null,null,{"$f":"IF(L55=\"Kontenanrufe vollständig!\",1,2)","v":2},{"$f":"IF(AND(G54=6030,G55=8010),\"Kontenanrufe vollständig!\",\"Kontenanrufe nicht vollständig!\")","v":"Kontenanrufe nicht vollständig!"}]
[null,null,null,null,null,null,null,null,null,null,{"$f":"IF(L56=\"Saldo richtig!\",1,2)","v":2},{"$f":"IF(J55=12600,\"Saldo richtig!\",\"Ermitteln Sie den richtigen Saldo!\")","v":"Ermitteln Sie den richtigen Saldo!"}]
[]
["Soll","2100 Unfertige Erzeugnisse",null,null,null,null,null,null,null,"Haben"]
["Nr.","Kontenanruf",null,null,"Euro","Nr.","Kontenanruf",null,null,"Euro"]
["AB","8000",null,null,{"$f":"Bilanzbuch!C11","v":34000},"A1"]
[null,null,null,null,null,"A",null,null,null,null,{"$f":"IF(L61=\"Kontenanrufe vollständig!\",1,2)","v":2},{"$f":"IF(AND(G60=8010,G61=5200),\"Kontenanrufe vollständig!\",\"Kontenanrufe nicht vollständig!\")","v":"Kontenanrufe nicht vollständig!"}]
[null,null,null,null,null,null,null,null,null,null,{"$f":"IF(L62=\"Saldo richtig!\",1,2)","v":2},{"$f":"IF(J61=19200,\"Saldo richtig!\",\"Ermitteln Sie den richtigen Saldo!\")","v":"Ermitteln Sie den richtigen Saldo!"}]
[]
["Soll","2200 Fertige Erzeugnisse",null,null,null,null,null,null,null,"Haben"]
["Nr.","Kontenanruf",null,null,"Euro","Nr.","Kontenanruf",null,null,"Euro"]
["AB","8000",null,null,{"$f":"Bilanzbuch!C12","v":45000},"A1"]
["A",null,null,null,null,null,null,null,null,null,{"$f":"IF(L67=\"Kontenanrufe vollständig!\",1,2)","v":2},{"$f":"IF(AND(G66=8010,B67=5200),\"Kontenanrufe vollständig!\",\"Kontenanrufe nicht vollständig!\")","v":"Kontenanrufe nicht vollständig!"}]
[null,null,null,null,null,null,null,null,null,null,{"$f":"IF(L68=\"Saldo richtig!\",1,2)","v":2},{"$f":"IF(E67=2000,\"Saldo richtig!\",\"Ermitteln Sie den richtigen Saldo!\")","v":"Ermitteln Sie den richtigen Saldo!"}]
[]
["Soll","2400 Forderungen aus Lieferungen und Leistungen",null,null,null,null,null,null,null,"Haben"]
["Nr.","Kontenanruf",null,null,"Euro","Nr.","Kontenanruf",null,null,"Euro"]
["AB","8000",null,null,{"$f":"Bilanzbuch!C13","v":75000},"3."]
["11.",null,null,null,null,"6.",null,null,null,null,{"$f":"IF(L73=\"Kontenanrufe vollständig!\",1,2)","v":2},{"$f":"IF(AND(B73=5000,C73=4800,G72=2800,H72=5001,I72=4800,B73=5000,C73=4800,B74=5000,C74=4800,G73=5001,H73=4800,G74=5000,H74=4800,G75=2800,H75=5001,I75=4800,G76=8010),\"Kontenanrufe vollständig!\",\"Kontenanrufe nicht vollständig!\")","v":"Kontenanrufe nicht vollständig!"}]
["18.",null,null,null,null,"16.",null,null,null,null,{"$f":"IF(L74=\"Saldo richtig!\",1,2)","v":2},{"$f":"IF(J76=(E73+E74+E72-J72-J73-J74-J75),\"Saldo richtig!\",\"Ermitteln Sie den richtigen Saldo!\")","v":"Ermitteln Sie den richtigen Saldo!"}]
[null,null,null,null,null,"19."]
[null,null,null,null,null,"SB"]
[]
[]
["Soll","2600 Vorsteuer",null,null,null,null,null,null,null,"Haben"]
["Nr.","Kontenanruf",null,null,"Euro","Nr.","Kontenanruf",null,null,"Euro"]
["1.",null,null,null,null,"5."]
["2.",null,null,null,null,"8.",null,null,null,null,{"$f":"IF(L82=\"Kontenanrufe vollständig!\",1,2)","v":2},{"$f":"IF(AND(B81=4400,B82=2880,B83=4400,B84=2880,B85=2880,B86=2880,B87=4400,G81=4400,G82=4400,G83=4400,G84=4400,G85=4400,G86=4800),\"Kontenanrufe vollständig!\",\"Kontenanrufe nicht vollständig!\")","v":"Kontenanrufe nicht vollständig!"}]
["4.",null,null,null,null,"10.",null,null,null,null,{"$f":"IF(L83=\"Saldo richtig!\",1,2)","v":2},{"$f":"IF(AND(J86>0,J86=(E81+E82+E83+E84+E85+E86+E87-J81-J82-J83-J84-J85)),\"Saldo richtig!\",\"Ermitteln Sie den richtigen Saldo!\")","v":"Ermitteln Sie den richtigen Saldo!"}]
["7.",null,null,null,null,"15."]
["9.",null,null,null,null,"17."]
["12.",null,null,null,null,"UST"]
["14."]
[]
[]
["Soll","2800 Kreditinstitute/Bank",null,null,null,null,null,null,null,"Haben"]
["Nr.","Kontenanruf",null,null,"Euro","Nr.","Kontenanruf",null,null,"Euro"]
["AB","8000",null,null,{"$f":"Bilanzbuch!C14","v":85000},"10."]
["3.",null,null,null,null,"15.",null,null,null,null,{"$f":"IF(L93=\"Kontenanrufe vollständig!\",1,2)","v":2},{"$f":"IF(AND(B93=2400,B94=2400,G92=4400,G93=4400,G94=8010),\"Kontenanrufe vollständig!\",\"Kontenanrufe nicht vollständig!\")","v":"Kontenanrufe nicht vollständig!"}]
["19.",null,null,null,null,"SB",null,null,null,null,{"$f":"IF(L94=\"Saldo richtig!\",1,2)","v":2},{"$f":"IF(J94=(E92+E93+E94-J92-J93),\"Saldo richtig!\",\"Ermitteln Sie den richtigen Saldo!\")","v":"Ermitteln Sie den richtigen Saldo!"}]
[]
[]
["Soll","2880 Kasse",null,null,null,null,null,null,null,"Haben"]
["Nr.","Kontenanruf",null,null,"Euro","Nr.","Kontenanruf",null,null,"Euro"]
["AB","8000",null,null,{"$f":"Bilanzbuch!C15","v":9300},"2."]
["13.",null,null,null,null,"7.",null,null,null,null,{"$f":"IF(L100=\"Kontenanrufe vollständig!\",1,2)","v":2},{"$f":"IF(AND(B100=5000,C100=4800,G99=2001,H99=2600,G100=2020,H100=2600,G101=6140,H101=2600,G102=6140,H102=2600,G103=8010),\"Kontenanrufe vollständig!\",\"Kontenanrufe nicht vollständig!\")","v":"Kontenanrufe nicht vollständig!"}]
[null,null,null,null,null,"9.",null,null,null,null,{"$f":"IF(L101=\"Saldo richtig!\",1,2)","v":2},{"$f":"IF(J103=(E99+E100-J99-J100-J101-J102),\"Saldo richtig!\",\"Ermitteln Sie den richtigen Saldo!\")","v":"Ermitteln Sie den richtigen Saldo!"}]
[null,null,null,null,null,"12."]
[null,null,null,null,null,"SB"]
[]
[]
["Soll","3000 Eigenkapital",null,null,null,null,null,null,null,"Haben"]
["Nr.","Kontenanruf",null,null,"Euro","Nr.","Kontenanruf",null,null,"Euro"]
["SB",null,null,null,null,"AB",8000,null,null,{"$f":"Bilanzbuch!F4","v":1008300}]
[null,null,null,null,null,"GuV",null,null,null,null,{"$f":"IF(L109=\"Kontenanrufe vollständig!\",1,2)","v":2},{"$f":"IF(AND(G109=8020,B108=8010),\"Kontenanrufe vollständig!\",\"Kontenanrufe nicht vollständig!\")","v":"Kontenanrufe nicht vollständig!"}]
[null,null,null,null,null,null,null,null,null,null,{"$f":"IF(L110=\"Saldo richtig!\",1,2)","v":2},{"$f":"IF(E108=1018100,\"Saldo richtig!\",\"Ermitteln Sie den richtigen Saldo!\")","v":"Ermitteln Sie den richtigen Saldo!"}]
[]
["Soll","4200 Verbindlichkeiten gegenüber Kreditinstituten (Darlehen)",null,null,null,null,null,null,null,"Haben"]
["Nr.","Kontenanruf",null,null,"Euro","Nr.","Kontenanruf",null,null,"Euro",{"$f":"IF(L113=\"Kontenanrufe vollständig!\",1,2)","v":2},{"$f":"IF(B114=8010,\"Kontenanrufe vollständig!\",\"Kontenanrufe nicht vollständig!\")","v":"Kontenanrufe nicht vollständig!"}]
["SB",null,null,null,null,"AB","8000",null,null,{"$f":"Bilanzbuch!F5","v":1200000},{"$f":"IF(L114=\"Saldo richtig!\",1,2)","v":2},{"$f":"IF(E114=1200000,\"Saldo richtig!\",\"Ermitteln Sie den richtigen Saldo!\")","v":"Ermitteln Sie den richtigen Saldo!"}]
[]
["Soll","4400 Verbindlichkeiten aus Lieferungen und Leistungen",null,null,null,null,null,null,null,"Haben"]
["Nr.","Kontenanruf",null,null,"Euro","Nr.","Kontenanruf",null,null,"Euro"]
["5.",null,null,null,null,"AB",8000,null,null,{"$f":"Bilanzbuch!F6","v":59000}]
["8.",null,null,null,null,"1.",null,null,null,null,{"$f":"IF(L119=\"Kontenanrufe vollständig!\",1,2)","v":2},{"$f":"IF(AND(B118=2020,C118=2600,B119=2002,C119=2600,B120=2800,C120=2002,D120=2600,B121=2800,C121=2002,D121=2600,B123=8010,G119=2000,H119=2600,G120=2020,H120=2600,G121=2000,H121=2600),\"Kontenanrufe vollständig!\",\"Kontenanrufe nicht vollständig!\")","v":"Kontenanrufe nicht vollständig!"}]
["10.",null,null,null,null,"4.",null,null,null,null,{"$f":"IF(L120=\"Saldo richtig!\",1,2)","v":2},{"$f":"IF(E123=(J118+J119+J120+J121-E118-E119-E120-E121-E122),\"Saldo richtig!\",\"Ermitteln Sie den richtigen Saldo!\")","v":"Ermitteln Sie den richtigen Saldo!"}]
["15.",null,null,null,null,"14."]
["17."]
["SB"]
[]
[]
["Soll","4800 Umsatzsteuer",null,null,null,null,null,null,null,"Haben"]
["Nr.","Kontenanruf",null,null,"Euro","Nr.","Kontenanruf",null,null,"Euro"]
["3.",null,null,null,null,"AB","8000",null,null,{"$f":"Bilanzbuch!F7","v":11000}]
["6.",null,null,null,null,"11."]
["16.",null,null,null,null,"13.",null,null,null,null,{"$f":"IF(L130=\"Kontenanrufe vollständig!\",1,2)","v":2},{"$f":"IF(AND(B128=2400,B129=2400,B130=2400,B131=2400,B132=2600,B133=8010,G129=2400,G130=2880,G131=2400),\"Kontenanrufe vollständig!\",\"Kontenanrufe nicht vollständig!\")","v":"Kontenanrufe nicht vollständig!"}]
["19.",null,null,null,null,"18.",null,null,null,null,{"$f":"IF(L131=\"Saldo richtig!\",1,2)","v":2},{"$f":"IF(E133=(J128+J129+J130+J131-E128-E129-E130-E131-E132),\"Saldo richtig!\",\"Ermitteln Sie den richtigen Saldo!\")","v":"Ermitteln Sie den richtigen Saldo!"}]
["VS"]
["SB"]
[]
[]
["Soll","5000 Umsatzerlöse",null,null,null,null,null,null,null,"Haben"]
["Nr.","Kontenanruf",null,null,"Euro","Nr.","Kontenanruf",null,null,"Euro"]
["16.",null,null,null,null,"11."]
["EB",null,null,null,null,"13.",null,null,null,null,{"$f":"IF(L139=\"Kontenanrufe vollständig!\",1,2)","v":2},{"$f":"IF(AND(B138=2400,B139=5001,B140=8020,G138=2400,G139=2880,G140=2400),\"Kontenanrufe vollständig!\",\"Kontenanrufe nicht vollständig!\")","v":"Kontenanrufe nicht vollständig!"}]
["GuV",null,null,null,null,"18.",null,null,null,null,{"$f":"IF(L140=\"Saldo richtig!\",1,2)","v":2},{"$f":"IF(E140=114350,\"Saldo richtig!\",\"Ermitteln Sie den richtigen Saldo!\")","v":"Ermitteln Sie den richtigen Saldo!"}]
[]
[]
["Soll","5001 Erlösberichtigungen",null,null,null,null,null,null,null,"Haben"]
["Nr.","Kontenanruf",null,null,"Euro","Nr.","Kontenanruf",null,null,"Euro"]
["3.",null,null,null,null,"UE"]
["6.",null,null,null,null,null,null,null,null,null,{"$f":"IF(L146=\"Kontenanrufe vollständig!\",1,2)","v":2},{"$f":"IF(AND(B145=2400,B146=2400,B147=2400,G145=5000),\"Kontenanrufe vollständig!\",\"Kontenanrufe nicht vollständig!\")","v":"Kontenanrufe nicht vollständig!"}]
["19.",null,null,null,null,null,null,null,null,null,{"$f":"IF(L147=\"Saldo richtig!\",1,2)","v":2},{"$f":"IF(J145=1950,\"Saldo richtig!\",\"Ermitteln Sie den richtigen Saldo!\")","v":"Ermitteln Sie den richtigen Saldo!"}]
[]
[]
["Soll","5200 Bestandsveränderunen",null,null,null,null,null,null,null,"Haben","X"]
["Nr.","Kontenanruf",null,null,"Euro","Nr.","Kontenanruf",null,null,"Euro"]
["A",null,null,null,null,"A"]
[null,null,null,null,null,"GuV"]
[null,null,null,null,null,null,null,null,null,null,{"$f":"IF(L154=\"Kontenanrufe vollständig!\",1,2)","v":2},{"$f":"IF(AND(B152=2100,G152=2200,G153=8020),\"Kontenanrufe vollständig!\",\"Kontenanrufe nicht vollständig!\")","v":"Kontenanrufe nicht vollständig!"}]
[null,null,null,null,null,null,null,null,null,null,{"$f":"IF(L155=\"Saldo richtig!\",1,2)","v":2},{"$f":"IF(J153=17200,\"Saldo richtig!\",\"Ermitteln Sie den richtigen Saldo!\")","v":"Ermitteln Sie den richtigen Saldo!"}]
[]
["Soll","6000 Aufwendungen für Rohstoffe",null,null,null,null,null,null,null,"Haben","X"]
["Nr.","Kontenanruf",null,null,"Euro","Nr.","Kontenanruf",null,null,"Euro"]
["20.",null,null,null,null,"GuV"]
[null,null,null,null,null,null,null,null,null,null,{"$f":"IF(L160=\"Kontenanrufe vollständig!\",1,2)","v":2},{"$f":"IF(AND(B159=2000,G159=8020),\"Kontenanrufe vollständig!\",\"Kontenanrufe nicht vollständig!\")","v":"Kontenanrufe nicht vollständig!"}]
[null,null,null,null,null,null,null,null,null,null,{"$f":"IF(L161=\"Saldo richtig!\",1,2)","v":2},{"$f":"IF(J159=23000,\"Saldo richtig!\",\"Ermitteln Sie den richtigen Saldo!\")","v":"Ermitteln Sie den richtigen Saldo!"}]
[]
["Soll","6020 Aufwendungen für Hilfsstoffe",null,null,null,null,null,null,null,"Haben"]
["Nr.","Kontenanruf",null,null,"Euro","Nr.","Kontenanruf",null,null,"Euro"]
["20.",null,null,null,null,"GuV "]
[null,null,null,null,null,null,null,null,null,null,{"$f":"IF(L166=\"Kontenanrufe vollständig!\",1,2)","v":2},{"$f":"IF(AND(B165=2020,G165=8020),\"Kontenanrufe vollständig!\",\"Kontenanrufe nicht vollständig!\")","v":"Kontenanrufe nicht vollständig!"}]
[null,null,null,null,null,null,null,null,null,null,{"$f":"IF(L167=\"Saldo richtig!\",1,2)","v":2},{"$f":"IF(J165=9800,\"Saldo richtig!\",\"Ermitteln Sie den richtigen Saldo!\")","v":"Ermitteln Sie den richtigen Saldo!"}]
[]
["Soll","6030 Aufwendungen für Betriebsstoffe",null,null,null,null,null,null,null,"Haben"]
["Nr.","Kontenanruf",null,null,"Euro","Nr.","Kontenanruf",null,null,"Euro"]
["20.",null,null,null,null,"GuV"]
[null,null,null,null,null,null,null,null,null,null,{"$f":"IF(L172=\"Kontenanrufe vollständig!\",1,2)","v":2},{"$f":"IF(AND(B171=2030,G171=8020),\"Kontenanrufe vollständig!\",\"Kontenanrufe nicht vollständig!\")","v":"Kontenanrufe nicht vollständig!"}]
[null,null,null,null,null,null,null,null,null,null,{"$f":"IF(L173=\"Saldo richtig!\",1,2)","v":2},{"$f":"IF(J171=1400,\"Saldo richtig!\",\"Ermitteln Sie den richtigen Saldo!\")","v":"Ermitteln Sie den richtigen Saldo!"}]
[]
["Soll","6140 Frachten und Femdlager",null,null,null,null,null,null,null,"Haben"]
["Nr.","Kontenanruf",null,null,"Euro","Nr.","Kontenanruf",null,null,"Euro"]
["9.",null,null,null,null,"GuV"]
["12.",null,null,null,null,null,null,null,null,null,{"$f":"IF(L178=\"Kontenanrufe vollständig!\",1,2)","v":2},{"$f":"IF(AND(B177=2880,B178=2880,G177=8020),\"Kontenanrufe vollständig!\",\"Kontenanrufe nicht vollständig!\")","v":"Kontenanrufe nicht vollständig!"}]
[null,null,null,null,null,null,null,null,null,null,{"$f":"IF(L179=\"Saldo richtig!\",1,2)","v":2},{"$f":"IF(J177=1750,\"Saldo richtig!\",\"Ermitteln Sie den richtigen Saldo!\")","v":"Ermitteln Sie den richtigen Saldo!"}]
[]
["Soll","6520 Abschreibungen auf Sachanlagen",null,null,null,null,null,null,null,"Haben"]
["Nr.","Kontenanruf",null,null,"Euro","Nr.","Kontenanruf",null,null,"Euro"]
["A2",null,null,null,null,"GuV",8020]
["A2",null,null,null,null,null,null,null,null,null,{"$f":"IF(L184=\"Kontenanrufe vollständig!\",1,2)","v":2},{"$f":"IF(AND(B183=\"0700\",B184=\"0800\",B185=\"0840\",G183=8020),\"Kontenanrufe vollständig!\",\"Kontenanrufe nicht vollständig!\")","v":"Kontenanrufe nicht vollständig!"}]
["A2",null,null,null,null,null,null,null,null,null,{"$f":"IF(L185=\"Saldo richtig!\",1,2)","v":2},{"$f":"IF(J183=51400,\"Saldo richtig!\",\"Ermitteln Sie den richtigen Saldo!\")","v":"Ermitteln Sie den richtigen Saldo!"}]

{"sheet":"GuV","index":3,"n_rows":132,"n_cols":11,"rows_kept":132,"cut":false,"hidden":false,"merged":[[0,0,0,5],[2,1,2,4],[3,6,4,6],[3,7,4,7]]}
["Gewinn- und Verlustrechnung"]
[]
["Soll","8020 Gewinn und Verlust",null,null,null,"Haben","X"]
["5200",{"$f":"VLOOKUP(A4,Kontenplan!$A$4:$B$34,2)","v":"Bestandsveränderungen"},null,"5000",{"$f":"VLOOKUP(D4,Kontenplan!$A$4:$B$34,2)","v":"Umsatzerlöse"},null,{"$f":"IF(H4=\"Sie haben den Gewinn richtig ermittelt!\",1,2)","v":2},{"$f":"IF(C10=9800,\"Sie haben den Gewinn richtig ermittelt!\",\"Sie haben noch Fehler!\")","v":"Sie haben noch Fehler!"}]
["6000","Aufwendungen für Rohstoffe"]
["6020","Aufwendungen für Hilfsstoffe"]
["6030","Aufwendungen für Betriebsstoffe"]
["6140","Frachten und Fremdlager"]
["6520","Abschreibung auf Sachanlagen"]
[3000,"Eigenkapital"]
[]
[]
[]
[]
[]
[]
[]
[]
[]
[]
[]
[]
[]
[]
[]
[]
[]
[]
[]
[]
[]
[]
[]
[]
[]
[]
[]
[]
[]
[]
[]
[]
[]
[]
[]
[]
[]
[]
[]
[]
[]
[]
[]
[]
[]
[]
[]
[]
[]
[]
[]
[]
[]
[]
[]
[]
[]
[]
[]
[]
[]
[]
[]
[]
[]
[]
[]
[]
[]
[]
[]
[]
[]
[]
[]
[]
[]
[]
[]
[]
[]
[]
[]
[]
[]
[]
[]
[]
[]
[]
[]
[]
[]
[]
[]
[]
[]
[]
[]
[]
[]
[]
[]
[]
[]
[]
[]
[]
[]
[]
[]
[]
[]
[]
[]
[]
[]
[]
[]
[]
[]
[null,null,null,null,null,null,null,null,null,null,"X"]

{"sheet":"Bilanzbuch","index":4,"n_rows":30,"n_cols":8,"rows_kept":30,"cut":false,"hidden":false,"merged":[[2,1,2,4],[0,0,0,5],[17,1,17,4],[18,6,19,6]]}
["Bilanzbuch"]
[]
["Aktiva","8000 Eröffnungsbilanz",null,null,null,"Passiva"]
["0500",{"$f":"VLOOKUP(A4,Kontenplan!$A$4:$B$34,2)","v":"Grundstücke und Bauten"},1100000,"3000",{"$f":"VLOOKUP(D4,Kontenplan!$A$4:$B$34,2)","v":"Eigenkapital"},{"$f":"F16-SUM(F5:F15)","v":1008300}]
["0700",{"$f":"VLOOKUP(A5,Kontenplan!$A$4:$B$34,2)","v":"Technische Anlagen und Maschinen"},590000,"4200","Verbindlichkeiten g. Kreditinstitute",1200000]
["0800",{"$f":"VLOOKUP(A6,Kontenplan!$A$4:$B$34,2)","v":"Beriebs- und Geschäftsausstattung"},115000,"4400",{"$f":"VLOOKUP(D6,Kontenplan!$A$4:$B$34,2)","v":"Verbindlichkeiten a.L.u.L."},59000]
["0840","Fuhrpark",105000,"4800",{"$f":"VLOOKUP(D7,Kontenplan!$A$4:$B$34,2)","v":"Umsatzsteuer"},11000]
["2000",{"$f":"VLOOKUP(A8,Kontenplan!$A$4:$B$34,2)","v":"Rohstoffe"},90000]
["2020",{"$f":"VLOOKUP(A9,Kontenplan!$A$4:$B$34,2)","v":"Hilfsstoffe"},16000]
["2030",{"$f":"VLOOKUP(A10,Kontenplan!$A$4:$B$34,2)","v":"Betriebsstoffe"},14000]
["2100",{"$f":"VLOOKUP(A11,Kontenplan!$A$4:$B$34,2)","v":"Unfertige Erzeugnisse"},34000]
["2200",{"$f":"VLOOKUP(A12,Kontenplan!$A$4:$B$34,2)","v":"Fertige Erzeugnisse"},45000]
["2400",{"$f":"VLOOKUP(A13,Kontenplan!$A$4:$B$34,2)","v":"Forderungen a.L.u.L."},75000]
["2800",{"$f":"VLOOKUP(A14,Kontenplan!$A$4:$B$34,2)","v":"Kreditinstitute/Bank"},85000]
["2880",{"$f":"VLOOKUP(A15,Kontenplan!$A$4:$B$34,2)","v":"Kasse"},9300]
[null,null,{"$f":"SUM(C4:C15)","v":2278300},null,null,{"$f":"C16","v":2278300}]
[]
["Aktiva","8010 Schlussbilanz",null,null,null,"Passiva","X"]
["0500",{"$f":"VLOOKUP(A19,Kontenplan!$A$4:$B$34,2)","v":"Grundstücke und Bauten"},null,"3000",{"$f":"VLOOKUP(D19,Kontenplan!$A$4:$B$34,2)","v":"Eigenkapital"},null,{"$f":"IF(H19=\"Aktiva = Passiva\",1,2)","v":1},{"$f":"IF(C31-F31=0,\"Aktiva = Passiva\",IF(C31-F31>0,\"Aktiva > Passiva\",\"Aktiva < Passiva\"))","v":"Aktiva = Passiva"}]
["0700",{"$f":"VLOOKUP(A20,Kontenplan!$A$4:$B$34,2)","v":"Technische Anlagen und Maschinen"},null,"4200","Verbindlichkeiten g. Kreditinstituten",null,null,{"$f":"CONCATENATE(\"Differenz = \",$C$31-$F$31)","v":"Differenz = 0"}]
["0800",{"$f":"VLOOKUP(A21,Kontenplan!$A$4:$B$34,2)","v":"Beriebs- und Geschäftsausstattung"},null,"4400",{"$f":"VLOOKUP(D21,Kontenplan!$A$4:$B$34,2)","v":"Verbindlichkeiten a.L.u.L."}]
["0840","Fuhrpark",null,"4800",{"$f":"VLOOKUP(D22,Kontenplan!$A$4:$B$34,2)","v":"Umsatzsteuer"}]
["2000",{"$f":"VLOOKUP(A23,Kontenplan!$A$4:$B$34,2)","v":"Rohstoffe"}]
["2020",{"$f":"VLOOKUP(A24,Kontenplan!$A$4:$B$34,2)","v":"Hilfsstoffe"}]
["2030",{"$f":"VLOOKUP(A25,Kontenplan!$A$4:$B$34,2)","v":"Betriebsstoffe"}]
["2100",{"$f":"VLOOKUP(A26,Kontenplan!$A$4:$B$34,2)","v":"Unfertige Erzeugnisse"}]
["2200",{"$f":"VLOOKUP(A27,Kontenplan!$A$4:$B$34,2)","v":"Fertige Erzeugnisse"}]
["2400",{"$f":"VLOOKUP(A28,Kontenplan!$A$4:$B$34,2)","v":"Forderungen a.L.u.L."}]
["2800",{"$f":"VLOOKUP(A29,Kontenplan!$A$4:$B$34,2)","v":"Kreditinstitute/Bank"}]
["2880",{"$f":"VLOOKUP(A30,Kontenplan!$A$4:$B$34,2)","v":"Kasse"}]

{"sheet":"Kontenplan","index":5,"n_rows":34,"n_cols":2,"rows_kept":34,"cut":false,"hidden":false,"merged":[]}
[null,"Kontenplan"]
[]
["Nr.","Konto"]
["0500","Grundstücke und Bauten"]
["0700","Technische Anlagen und Maschinen"]
["0800","Beriebs- und Geschäftsausstattung"]
["0840","Fuhrpark"]
["2000","Rohstoffe"]
["2001","Bezugskosten (Rohstoffe)"]
["2002","Nachlässe (Rohstoffe)"]
["2020","Hilfsstoffe"]
["2030","Betriebsstoffe"]
["2100","Unfertige Erzeugnisse"]
["2200","Fertige Erzeugnisse"]
["2400","Forderungen a.L.u.L."]
["2600","Vorsteuer"]
["2800","Kreditinstitute/Bank"]
["2880","Kasse"]
["3000","Eigenkapital"]
["4200","Verbindlichkeiten g. Kreditinstituten"]
["4400","Verbindlichkeiten a.L.u.L."]
["4800","Umsatzsteuer"]
["5000","Umsatzerlöse"]
["5001","Erlösberichtigungen"]
["5200","Bestandsveränderungen"]
["6000","Aufwendungen für Rohstoffe"]
["6020","Aufwendungen für Hilfsstoffe"]
["6030","Aufwendungen für Betriebsstoffe"]
["6140","Frachten und Fremdlager"]
["6160","Fremdinstandhaltung"]
["6520","Abschreibungen auf Sachanlagen"]
["8000","Eröffnungsbilanz"]
["8010","Schlussbilanz"]
["8020","Gewinn und Verlust"]